{"text_format":"1","workbook":"xlsx","n_sheets":1,"sheets":["Test_Aroma"],"not_rendered":{"charts":0,"images":0,"macros":1,"external_links":0,"defined_names":0,"comments":0,"pivot_tables":0},"unopened":[],"bounds":{"document_bytes":16777216,"sheet_cells":100000,"rows_first":2000,"rows_last":500,"rows_between":2000,"halvings":0,"cell_chars":16384,"cell_head_chars":4096},"cells_cut":0,"cells_raw":0,"read":"whole","date_system":"1900"}

{"sheet":"Test_Aroma","index":0,"n_rows":83,"n_cols":15,"rows_kept":83,"cut":false,"hidden":false,"merged":[[3,0,3,2],[1,0,1,2],[2,0,2,2],[0,0,0,2]]}
["Test aroma typu"]
["Ty správné éterické oleje pro vás… Britská aromaterapeutka Valerie Ann Worwood vytvořila unikátní systém AROMA GENERA, který vychází z rozpoznání devíti aromatypů osobností:"]
["květoví, ovocní, bylinkoví, listoví, pryskyřiční, kořenoví, semínkoví, kořenění, dřevití."]
["Každá ze skupin koresponduje s určitou osobností člověka a způsobem, jakým cítí, myslí a jedná. K jaké skupině patříte a které éterické oleje jsou nejvhodnější k vaší harmonizaci, vám odhalí tento zdánlivě zábavný, ale velice důmyslně sestavený test. \nPoctivě odpovězte na 15 otázek (v případě nerozhodnosti můžete zvolit i dvě odpovědi). Svůj typ zjistíte podle toho, který z aromatypů se vám v odpovědích opakuje nejčastěji. Užijte si to!"]
[null,null,null,null,"květinoví","ovocní","bylinkoví","listoví","pryskyřiční","kořenoví","semínkoví","kořenění","dřevní"]
["1. Nejvíce vás vystihuje charakteristika…"]
[null,null,null,false,{"$f":"IF($D7=TRUE,1,0)","v":0},{"$f":"IF($D7=TRUE,1,0)","v":0},{"$f":"IF($D7=TRUE,0,0)","v":0},{"$f":"IF($D7=TRUE,0,0)","v":0},0,0,0,0,{"$f":"IF($D7=TRUE,0,0)","v":0}]
[null,null,null,false,{"$f":"IF($D8=TRUE,0,0)","v":0},0,0,0,0,0,0,0,0]
[null,null,null,false,0,0,0,0,0,{"$f":"IF($D9=TRUE,0,0)","v":0},0,0,0]
[null,null,null,false,0,0,0,0,{"$f":"IF($D10=TRUE,0,0)","v":0},0,0,0,0]
["2. Ideální zaměstnání pro vás představuje…"]
[null,null,null,false,0,0,0,0,0,0,0,0,0]
[null,null,null,false,0,0,0,0,0,0,0,0,0]
[null,null,null,false,0,0,0,0,0,0,0,0,0]
[null,null,null,false,{"$f":"IF($D15=TRUE,1,0)","v":0},0,0,0,0,0,0,0,0]
["3. K osobnímu uspokojení je pro vás nejdůležitější…"]
[null,null,null,false,0,0,0,0,0,0,0,0,0]
[null,null,null,false,0,0,0,0,0,0,0,0,0]
[null,null,null,false,0,0,0,0,0,0,0,0,0]
[null,null,null,false,0,0,0,0,0,0,0,0,0]
["4. Víkendy nejraději trávíte…"]
[null,null,null,false,0,0,0,0,0,0,0,0,0]
[null,null,null,false,0,0,0,0,0,0,0,0,0]
[null,null,null,false,0,0,0,{"$f":"IF($D24=TRUE,1,0)","v":0},0,0,0,0,0]
[null,null,null,false,0,0,0,0,0,0,0,0,0]
["5. Co se týká randění…"]
[null,null,null,false,0,0,0,0,0,0,0,0,0]
[null,null,null,false,0,0,0,0,0,0,0,0,0]
[null,null,null,false,0,0,0,0,0,0,0,0,0]
[null,null,null,false,0,0,0,0,0,0,0,0,0]
["6. Váš ideální parter by byl…"]
[null,null,null,false,0,0,0,0,0,0,0,0,0]
[null,null,null,false,0,0,0,0,0,0,0,0,0]
[null,null,null,false,0,0,0,0,0,0,0,0,0]
[null,null,null,false,0,0,0,0,0,0,0,0,0]
["7. Vaše hlavní skupina přátel se skládá…"]
[null,null,null,false,0,0,0,0,0,0,0,0,0]
[null,null,null,false,0,0,0,0,0,0,0,0,0]
[null,null,null,false,0,0,0,0,0,0,0,0,0]
[null,null,null,false,0,0,0,{"$f":"IF($D40=TRUE,1,0)","v":0},0,0,0,0,0]
["8. Vaše ideální nákupy by zahrnovaly…"]
[null,null,null,false,0,0,0,0,0,0,0,0,0]
[null,null,null,false,0,0,0,0,0,0,0,0,0]
[null,null,null,false,0,0,0,0,0,0,0,0,0]
[null,null,null,false,0,0,0,0,0,0,0,0,0]
["9. Když zatoužíte po společnosti, vyhledáváte…"]
[null,null,null,false,0,0,0,0,0,0,0,0,0]
[null,null,null,false,0,0,0,0,0,0,0,0,0]
[null,null,null,false,0,0,0,0,0,0,0,0,0]
[null,null,null,false,0,0,0,0,0,0,0,0,0]
["10. Co se týká rodiny…"]
[null,null,null,false,0,0,0,0,0,0,0,0,0]
[null,null,null,false,0,0,0,0,0,0,0,0,0]
[null,null,null,false,0,0,0,0,0,0,0,0,0]
[null,null,null,false,0,0,0,0,0,0,0,0,0]
["11. Vaše vysněná dovolená by byla…"]
[null,null,null,false,0,0,0,0,{"$f":"IF($D57=TRUE,1,0)","v":0},{"$f":"IF($D57=TRUE,0,0)","v":0},0,0,0]
[null,null,null,false,{"$f":"IF($D58=TRUE,0,0)","v":0},0,{"$f":"IF($D58=TRUE,0,0)","v":0},0,0,0,0,{"$f":"IF($D58=TRUE,0,0)","v":0},0]
[null,null,null,false,0,{"$f":"IF($D59=TRUE,0,0)","v":0},0,0,0,0,0,0,0]
[null,null,null,false,{"$f":"IF($D60=TRUE,0,0)","v":0},0,0,{"$f":"IF($D60=TRUE,0,0)","v":0},0,0,0,0,0]
["12. Pokud se týká cvičení a pohybu…"]
[null,null,null,false,0,0,0,0,0,0,0,0,0]
[null,null,null,false,0,0,0,0,0,0,0,0,0]
[null,null,null,false,0,0,0,0,0,0,0,0,0]
[null,null,null,false,0,0,0,0,0,0,0,0,0]
["13. Z automobilů byste dali přednost…"]
[null,null,null,false,0,0,0,0,0,0,0,0,0]
[null,null,null,false,0,0,0,0,0,0,0,0,0]
[null,null,null,false,0,0,0,0,0,0,0,0,0]
[null,null,null,false,0,0,0,0,0,0,0,0,0]
["14. Jste spíše…"]
[null,null,null,false,0,0,0,0,0,0,{"$f":"IF($D72=TRUE,1,0)","v":0},0,0]
[null,null,null,false,0,0,0,0,0,0,0,0,0]
[null,null,null,false,0,0,0,0,0,0,0,0,0]
[null,null,null,false,0,0,0,0,0,0,0,0,0]
["15. Za 10 let se vidíte…"]
[null,null,null,false,0,0,0,0,0,0,0,0,0]
[null,null,null,false,0,0,0,0,0,0,0,0,0]
[null,null,null,false,0,0,0,0,0,0,0,0,0]
[null,null,null,false,0,0,0,0,0,0,0,0,0]
[null,null,null,null,{"$f":"SUM(E7:E80)","v":0},{"$f":"SUM(F7:F80)","v":0},0,0,0,0,0,0,0,null,{"$f":"MAX(E81:M81)","v":0}]
[null,null,null,null,"květinoví","ovocní","bylinkoví","listoví","pryskyřiční","kořenoví","semínkoví","kořenění","dřevní"]
[null,null,null,null,"KVĚTOVÍ - jste atraktivní, soutěživí, nadšení, přátelští, sebejistí, romantičtí a citliví. Rádi jste středem pozornosti, obklopujete se významnými lidmi, potrpíte si na prestiž a kvalitu. Milujete umění, hudbu, tanec, smyslové požitky. \nIdeálními éterickými oleji pro vás jsou například růže, jasmín, ylang-ylang, nerol a mimóza.","OVOCNÍ - pro vás je nejdůležitější důvěra, spolehlivost, loajálnost, věrnost a pracovitost. Býváte spokojení s tím, co máte, ambice u vás nehrají žádnou roli. Jste skvělou oporou pro spoustu přátel, nechybí vám nadšení a optimizmus. \nIdeálními éterickými oleji pro vás jsou například pomeranč, mandarinka, grep a bergamot.","BYLINKOVÍ - jste rodinně založení, milujete tradice a rodinné sešlosti. Charakterizuje vás laskavost, empatie, schopnost naslouchat druhým a pečovat o ně. Často však míváte sklony zanedbávat sebe sama a někdy se i sebeobětovat. \nIdeálními éterickými oleji pro vás jsou například heřmánek, levandule, mateřídouška a meduňka.","LISTOVÍ - jste nekonvenční, tvořiví a nápadití vizionáři, vždy plní fantazie. Vaší silnou stránkou je logika, analýza a schopnost pohlížet na vše holisticky. Jste spíše introverti, svědčí vám komorní prostředí, nesnášíte konflikty. \nVhodnými éterickými oleji pro vás jsou například máta, jalovec, borovice, jedle a smrk.","PRYSKYŘIČNÍ - jste \"zemití\", klidní a vyrovnaní lidé. Působíte stroze, vážně až trochu těžkopádně, ale v podstatě jste velmi srdeční a laskaví. Máte pevné názory, ctíte morální principy, pravdu a spravedlnost, často bojujete za vyšší ideály.\nVhodnými éterickými oleji pro vás jsou třeba santal, benzoin, nard a kadidlovník.","KOŘENOVÍ - jste mírumilovní pohodáři, vždy pevní v základech. Potřebujete svůj klid a zázemí, přírodu, žít v harmonii s rodinou a s okolím. Upřednostňujete jednoduchý životní styl - žádné starosti. Často míváte přirozené léčitelské schopnosti. \nVhodnými jsou pro vás například éterické oleje z kořenů angeliky nebo puškvorce.","SEMÍNKOVÍ - jste rození snílci, velmi kreativní, jemní, křehcí, intuitivní, citliví (často až přecitlivělí), duchovně a umělecky založení. K životu potřebujete pestrost, stále nové podněty a impulzy, což naznačuje i vaši značnou nestálost. \nIdeálními éterickými oleji pro vás jsou třeba anýz, kopr, kmín, koriandr a estragon.","KOŘENĚNÍ - jste osobnost dynamická, sebevědomá, odhodlaná, srdečná, okouzlující, impulzivní a často si libující v extrémech. Smyslem vašeho života je zábava a vzrušení, těší vás vyhledávat stále nové vztahy, lásky a přátele. \nVhodnými éterickými oleji pro vás jsou třeba tymián, vavřín, pepř, skořice a bazalka.","DŘEVITÍ - jste solidní, stabilní, spolehliví a čestní. Pro druhé býváte pevnou oporou, umíte jim naslouchat a pochopit je. Co začnete, zpravidla dokončíte. Často však míváte sklony k dominanci, k životu potřebujete ocenění, úctu a obdiv. \nVhodnými éterickými oleji pro vás jsou třeba cypřiš, cedr a růžové dřevo."]